fUST/lending_fUST_20250814
["ID","MTS","AMOUNT","RATE_DAILY","PERIOD"]
[379117969,1755151855151,-460.0,0.00018742,2]
[379117971,1755151855160,-460.0,0.00018742,2]
[379117972,1755151855170,-888.7,0.00018742,2]
[379117974,1755151855179,-460.0,0.00018742,2]
[379117976,1755151855188,-460.0,0.00018742,2]
[379117977,1755151855197,-460.0,0.00018742,2]
[379117979,1755151855207,-460.0,0.00018742,2]
[379117980,1755151855215,-460.0,0.00018742,2]
[379117982,1755151855224,-732.54,0.00018742,2]
[379117984,1755151855233,-756.58,0.00018742,2]
[379117985,1755151855243,-521.68,0.00018742,2]
[379117987,1755151855252,-460.0,0.00018742,2]
[379117988,1755151855261,-270.008103,0.00018742,2]
[379117990,1755151855270,-270.008103,0.00018742,2]
[379117992,1755151855279,-460.0,0.00018742,2]
[379117993,1755151855289,-270.008103,0.00018742,2]
[379117995,1755151855298,-270.008108,0.00018742,2]
[379117997,1755151855307,-460.0,0.00018742,2]
[379117998,1755151855321,-1854.61,0.00018742,2]
[379118008,1755151855461,-460.0,0.00018742,2]
[379118010,1755151855470,-460.0,0.00018742,2]
[379118012,1755151855480,-460.0,0.00018742,2]
[379118013,1755151855489,-460.0,0.00018742,2]
[379118015,1755151855499,-460.0,0.00018742,2]
[379118017,1755151855508,-460.0,0.00018742,2]
[379118018,1755151855517,-616.59,0.00018742,2]
[379118020,1755151855526,-293.597792,0.00018743,2]
[379118021,1755151855535,-293.597792,0.00018743,2]
[379118023,1755151855545,-500.0,0.00018744,2]
[379118025,1755151855554,-151.0,0.00018744,2]
[379118026,1755151855564,-249.503228,0.00018744,2]
[379118028,1755151855573,-249.503228,0.00018744,2]
[379118029,1755151855582,-460.0,0.00018744,2]
[379118031,1755151855591,-460.0,0.00018744,2]
[379118033,1755151855601,-460.0,0.00018744,2]
[379118034,1755151855610,-460.0,0.00018744,2]
[379118036,1755151855619,-210.02076478,0.00018744,2]
[379118037,1755151855627,-460.0,0.00018744,2]
[379118039,1755151855637,-460.0,0.00018744,2]
[379118041,1755151855646,-460.0,0.00018744,2]
[379118042,1755151855655,-460.0,0.00018744,2]
[379118044,1755151855664,-546.11,0.00018744,2]
[379118045,1755151855673,-460.0,0.00018744,2]
[379118047,1755151855683,-460.0,0.00018744,2]
[379118048,1755151855692,-460.0,0.00018744,2]
[379118050,1755151855701,-460.0,0.00018744,2]
[379118052,1755151855710,-460.0,0.00018744,2]
[379118053,1755151855719,-460.0,0.00018744,2]
[379118055,1755151855728,-379.34405251,0.00018744,2]
[379118056,1755151855737,-460.0,0.00018744,2]
[379118058,1755151855747,-460.0,0.00018744,2]
[379118060,1755151855757,-460.0,0.00018744,2]
[379118061,1755151855766,-460.0,0.00018744,2]
[379118063,1755151855775,-460.0,0.00018744,2]
[379118064,1755151855784,-460.0,0.00018744,2]
[379118066,1755151855793,-541.97,0.00018744,2]
[379118068,1755151855804,-460.0,0.00018744,2]
[379118069,1755151855813,-460.0,0.00018744,2]
[379118071,1755151855823,-460.0,0.00018744,2]
[379118073,1755151855833,-460.0,0.00018744,2]
[379118074,1755151855842,-460.0,0.00018744,2]
[379118076,1755151855852,-500.0,0.00018744,2]
[379118078,1755151855861,-460.0,0.00018744,2]
[379118079,1755151855870,-460.0,0.00018744,2]
[379118081,1755151855880,-733.61,0.00018744,2]
[379118083,1755151855890,-931.74,0.00018744,2]
[379118084,1755151855899,-607.0,0.00018744,2]
[379118086,1755151855908,-460.0,0.00018744,2]
[379118088,1755151855921,-460.0,0.00018744,2]
[379118089,1755151855930,-160.12699139,0.00018744,2]
[379118091,1755151855940,-460.0,0.00018744,2]
[379118092,1755151855949,-620.5,0.00018744,2]
[379118094,1755151855959,-460.0,0.00018744,2]
[379118096,1755151855968,-460.0,0.00018744,2]
[379118097,1755151855977,-182.12615106,0.00018744,2]
[379118099,1755151855986,-460.0,0.00018744,2]
[379118101,1755151855995,-460.0,0.00018744,2]
[379118102,1755151856005,-460.0,0.00018744,2]
[379118104,1755151856014,-460.0,0.00018744,2]
[379118105,1755151856023,-460.0,0.00018744,2]
[379118107,1755151856032,-460.0,0.00018744,2]
[379118109,1755151856041,-460.0,0.00018744,2]
[379118110,1755151856050,-1280.35,0.00018744,2]
[379118112,1755151856060,-460.0,0.00018744,2]
[379118114,1755151856070,-537.84,0.00018744,2]
[379118115,1755151856079,-460.0,0.00018744,2]
[379118117,1755151856087,-460.0,0.00018744,2]
[379118118,1755151856097,-460.0,0.00018744,2]
[379118119,1755151856106,-151.805446,0.00018751,2]
[379118120,1755151856115,-151.0,0.00018751,2]
[379118121,1755151856125,-586.56981,0.00018751,2]
[379118122,1755151856134,-586.56981,0.00018751,2]
[379118123,1755151856143,-293.597792,0.00018752,2]
[379118124,1755151856153,-293.597792,0.00018752,2]
[379118125,1755151856162,-151.0,0.00018753,2]
[379118126,1755151856171,-249.503228,0.00018753,2]
[379118127,1755151856181,-249.503228,0.00018753,2]
[379118128,1755151856190,-460.0,0.00018753,2]
[379118129,1755151856200,-460.0,0.00018753,2]
[379118130,1755151856209,-460.0,0.00018753,2]
[379118131,1755151856219,-460.0,0.00018753,2]
[379118132,1755151856228,-483.26827,0.00018754,2]
[379118133,1755151856237,-483.268264,0.00018754,2]
[379118134,1755151856246,-151.0,0.00018754,2]
[379118135,1755151856255,-586.56981,0.00018754,2]
[379118136,1755151856264,-586.56981,0.00018754,2]
[379118137,1755151856273,-215.098278,0.00018755,2]
[379118138,1755151856283,-151.0,0.00018756,2]
[379118139,1755151856292,-151.0,0.00018756,2]
[379118140,1755151856301,-151.0,0.00018756,2]
[379118141,1755151856311,-156.307325,0.00018757,2]
[379118142,1755151856322,-151.0,0.00018758,2]
[379118143,1755151856332,-151.0,0.00018758,2]
[379118144,1755151856341,-527.524838,0.00018759,2]
[379118145,1755151856350,-527.524848,0.00018759,2]
[379118146,1755151856360,-190.45,0.0001876,2]
[379118147,1755151856370,-190.45,0.0001876,2]
[379118148,1755151856379,-151.0,0.0001876,2]
[379118149,1755151856388,-151.0,0.00018768,2]
[379118150,1755151856398,-151.0,0.00018768,2]
[379118151,1755151856408,-151.783754,0.00018772,2]
[379118152,1755151856417,-151.0,0.00018772,2]
[379118154,1755151856427,-151.0,0.00018772,2]
[379118155,1755151856436,-249.503228,0.00018772,2]
[379118156,1755151856445,-249.503228,0.00018772,2]
[379118157,1755151856454,-501.32918472,0.00018773,2]
[379118159,1755151856463,-501.06397251,0.00018773,2]
[379118161,1755151856473,-278.1408019,0.00018773,2]
[379118162,1755151856482,-536.56572488,0.00018773,2]
[379118164,1755151856492,-479.0480218,0.00018773,2]
[379118166,1755151856502,-506.95485774,0.00018773,2]
[379118168,1755151856512,-500.58545385,0.00018773,2]
[379118170,1755151856522,-500.0,0.00018773,2]
[379118172,1755151856531,-500.0,0.00018773,2]
[379118174,1755151856541,-500.0,0.00018773,2]
[379118176,1755151856551,-380.01458645,0.00018773,2]
[379118178,1755151856560,-500.0,0.00018773,2]
[379118180,1755151856571,-500.0,0.00018773,2]
[379118182,1755151856581,-500.0,0.00018773,2]
[379118184,1755151856591,-615.63278151,0.00018773,2]
[379118186,1755151856600,-571.04618409,0.00018773,2]
[379118188,1755151856610,-500.0,0.00018773,2]
[379118190,1755151856619,-500.0,0.00018773,2]
[379118192,1755151856628,-500.0,0.00018773,2]
[379118194,1755151856638,-500.4156804,0.00018773,2]
[379118196,1755151856648,-500.0,0.00018773,2]
[379118198,1755151856658,-500.0,0.00018773,2]
[379118200,1755151856667,-500.0,0.00018773,2]
[379118202,1755151856676,-500.91868835,0.00018773,2]
[379118204,1755151856687,-500.0,0.00018773,2]
[379118206,1755151856697,-500.0,0.00018773,2]
[379118208,1755151856706,-460.45649248,0.00018773,2]
[379118210,1755151856716,-500.0,0.00018773,2]
[379118212,1755151856726,-500.71225786,0.00018773,2]
[379118214,1755151856735,-500.0,0.00018773,2]
[379118216,1755151856745,-500.0,0.00018773,2]
[379118218,1755151856755,-500.0,0.00018773,2]
[379118220,1755151856765,-507.53751155,0.00018773,2]
[379118222,1755151856774,-500.0,0.00018773,2]
[379118224,1755151856784,-500.0,0.00018773,2]
[379118226,1755151856794,-500.0,0.00018773,2]
[379118228,1755151856803,-500.0,0.00018773,2]
[379118230,1755151856812,-560.42093552,0.00018773,2]
[379118232,1755151856823,-501.54704497,0.00018773,2]
[379118234,1755151856832,-500.0,0.00018773,2]
[379118236,1755151856841,-500.0,0.00018773,2]
[379118238,1755151856851,-500.0,0.00018773,2]
[379118240,1755151856860,-501.1838426,0.00018773,2]
[379118242,1755151856869,-500.0,0.00018773,2]
[379118244,1755151856878,-500.0,0.00018773,2]
[379118246,1755151856887,-500.0,0.00018773,2]
[379118248,1755151856896,-500.0,0.00018773,2]
[379118250,1755151856907,-151.0,0.00018773,2]
[379118252,1755151856919,-151.0,0.00018773,2]
[379118254,1755151856928,-387.802145,0.00018773,2]
[379118256,1755151856938,-151.0,0.00018773,2]
[379118258,1755151856947,-151.0,0.00018773,2]
[379118260,1755151856957,-151.0,0.00018774,2]
[379118262,1755151856967,-151.0,0.00018774,2]
[379118264,1755151856983,-317.0,0.0001879,2]
[379118266,1755151857001,-293.5592996,0.000188,2]
[379118268,1755151857018,-151.0,0.00018821,2]
[379118270,1755151857027,-151.0,0.00018864,2]
[379118272,1755151857036,-151.0,0.00018864,2]
[379118274,1755151857045,-206.58153424,0.00018864,2]
[379118276,1755151857055,-151.0,0.00018864,2]
[379118278,1755151857064,-151.0,0.00018864,2]
[379118280,1755151857074,-151.0,0.00018864,3]
[379118282,1755151857083,-151.0,0.00018864,3]
[379118284,1755151857093,-151.0,0.00018864,3]
[379118286,1755151857102,-151.0,0.00018864,3]
[379118288,1755151857111,-151.0,0.00018874,2]
[379118290,1755151857121,-151.0,0.00018874,2]
[379118292,1755151857130,-151.0,0.00018874,2]
[379118294,1755151857139,-226.825464,0.00018874,2]
[379118296,1755151857149,-151.0,0.00018874,2]
[379118298,1755151857158,-387.802145,0.00018874,2]
[379118300,1755151857168,-151.0,0.00018874,2]
[379118302,1755151857177,-151.0,0.00018874,2]
[379118304,1755151857187,-160.0,0.00018919,2]
[379118306,1755151857195,-843.37884167,0.00018919,2]
[379118308,1755151857205,-160.0,0.00018919,2]
[379118310,1755151857214,-160.0,0.00018919,2]
[379118312,1755151857223,-417.15472785,0.00018919,2]
[379118314,1755151857232,-160.0,0.00018919,2]
[379118316,1755151857242,-160.0,0.00018919,2]
[379118318,1755151857251,-232.05637125,0.00018919,2]
[379118320,1755151857260,-160.0,0.00018919,2]
[379118322,1755151857270,-528.19044044,0.00018919,2]
[379118324,1755151857279,-461.9529908,0.00018919,2]
[379118326,1755151857288,-160.0,0.00018919,2]
[379118328,1755151857297,-160.0,0.00018919,2]
[379118330,1755151857306,-293.597792,0.00018924,2]
[379118332,1755151857317,-293.597792,0.00018924,2]
[379118334,1755151857337,-317.0,0.00018924,2]
[379118336,1755151857354,-160.0,0.00018925,2]
[379118338,1755151857363,-215.59581046,0.00018926,2]
[379118340,1755151857372,-158.944388,0.00018937,2]
[379118342,1755151857381,-317.0,0.0001896,2]
[379118344,1755151857390,-317.0,0.00018975,2]
[379118345,1755151857399,-463.49874712,0.00018977,2]
[379118348,1755151857409,-151.0,0.00018978,2]
[379118349,1755151857418,-317.0,0.0001898,2]
[379118351,1755151857428,-460.0,0.00018981,2]
[379118353,1755151857437,-183.0,0.00018988,2]
[379118355,1755151857447,-411.43,0.00018989,2]
[379118358,1755151857456,-179.95222903,0.00018989,2]
[379118360,1755151857465,-568.51,0.00019011,2]
[379118361,1755151857475,-460.0,0.00019011,2]
[379118364,1755151857484,-460.0,0.00019011,2]
[379118365,1755151857494,-460.0,0.00019011,2]
[379118367,1755151857503,-460.0,0.00019011,2]
[379118369,1755151857512,-7305.06888004,0.00019012,2]
[379118371,1755151857521,-833.3,0.00019012,2]
[379118373,1755151857531,-3376.59,0.00019012,2]
[379118375,1755151857540,-1098.68,0.00019012,2]
[379118377,1755151857549,-460.0,0.00019012,2]
[379118380,1755151857560,-4997.03,0.00019012,2]
[379118382,1755151857572,-545.75435216,0.00019012,2]
[379118384,1755151857581,-1987.3,0.00019012,2]
[379118385,1755151857591,-220.67147934,0.00019012,2]
[379118387,1755151857600,-2958.67363515,0.00019012,2]
[379118411,1755151857818,-768.28636485,0.00019012,2]
[379118413,1755151857827,-460.0,0.00019012,2]
[379118415,1755151857837,-610.63,0.00019012,2]
[379118417,1755151857846,-958.79,0.00019012,2]
[379118419,1755151857856,-2316.2654756,0.00019012,2]
[379118508,1755151858744,-172.63376852,0.0001819,2]
[379118511,1755151858758,-287.36623148,0.0001819,2]
[379118513,1755151858768,-515.71208157,0.0001819,2]
[379118515,1755151858777,-460.0,0.00018193,2]
[379118517,1755151858787,-460.0,0.00018196,2]
[379118519,1755151858796,-460.0,0.00018464,2]
[379118521,1755151858805,-460.0,0.00018738,2]
[379118523,1755151858815,-1120.40177205,0.00019012,2]
[379118525,1755151858829,-346.54128005,0.00019012,2]
[379118527,1755151858840,-1875.4614723,0.00019012,2]
[379118529,1755151858850,-1754.75524106,0.00019012,2]
[379118531,1755151858861,-2873.82475894,0.00019012,2]
[379118533,1755151858870,-801.6,0.00019012,2]
[379118535,1755151858880,-737.72,0.00019012,2]
[379118537,1755151858889,-1024.82,0.00019012,2]
[379118539,1755151858899,-620.87,0.00019012,2]
[379118541,1755151858908,-2711.67,0.00019012,2]
[379118543,1755151858918,-460.0,0.00019012,2]
[379118545,1755151858933,-970.56,0.00019012,2]
[379118547,1755151858943,-645.21,0.00019012,2]
[379118549,1755151858952,-1569.54,0.00019012,2]
[379118551,1755151858962,-460.0,0.00019012,2]
[379118553,1755151858975,-324.18524206,0.00019012,2]
[379118602,1755151859460,-460.0,0.00018192,2]
[379118604,1755151859470,-460.0,0.00018192,2]
[379118606,1755151859480,-460.0,0.00018193,2]
[379118608,1755151859490,-315.71765939,0.00018193,2]
[379118610,1755151859499,-388.49718687,0.00018466,2]
[379118612,1755151859511,-71.50281313,0.00018466,2]
[379118614,1755151859520,-280.08813458,0.00018467,2]
[379127594,1755151959088,340.995568,0.00013699,2]
[379128092,1755151965781,2500.0,0.00030137,120]
[379133120,1755152021493,311.4015191,0.0001809,2]
[379133181,1755152212403,272.47632916,0.00018089,2]
[379133182,1755152405507,238.41678805,0.00018088,2]
[379133186,1755152526060,461.16782274,0.00030136,120]
[379133187,1755152529730,167.57020892,0.0003,120]
[379133196,1755152720862,262.7,0.00030137,120]
[379133205,1755152769855,6754.90826167,0.00018088,2]
[379133206,1755152781176,151.0,0.0003,120]
[379133247,1755152912412,151.0,0.0003,120]
[379133259,1755152936981,5358.4721063,0.0003,120]
[379133260,1755152937664,10000.0,0.0003,120]
[379133262,1755152938780,10000.0,0.0003,120]
[379133263,1755152939766,10000.0,0.0003,120]
[379133264,1755152941014,10000.0,0.0003,120]
[379133266,1755152941383,10000.0,0.0003,120]
[379133267,1755152941806,10000.0,0.0003,120]
[379133268,1755152942164,10000.0,0.0003,120]
[379133269,1755152942578,10000.0,0.0003,120]
[379133270,1755152942879,10000.0,0.0003,120]
[379133271,1755152943279,10000.0,0.0003,120]
[379133272,1755152943626,10000.0,0.0003,120]
[379133273,1755152958998,5532.2,0.0003,120]
[379133274,1755152960885,323.945789,0.00013699,2]
[379133318,1755153037496,-151.0,0.00018178,2]
[379133319,1755153037506,-577.82,0.00018179,3]
[379133320,1755153037515,-65.396406,0.0001818,3]
[379133321,1755153037527,-215.373594,0.0001818,3]
[379133322,1755153037537,-257.47595745,0.00018182,2]
[379133334,1755153038702,-942.52404255,0.00018182,2]
[379133335,1755153038712,-1200.0,0.00018183,2]
[379133336,1755153038722,-300.0,0.00018183,2]
[379133337,1755153038732,-300.0,0.00018183,2]
[379133338,1755153038746,-300.0,0.00018183,2]
[379133339,1755153038755,-300.0,0.00018183,2]
[379133340,1755153038765,-300.0,0.00018183,2]
[379133341,1755153038775,-300.0,0.00018183,2]
[379133342,1755153038784,-9901.95935489,0.00018184,2]
[379133343,1755153038794,-472.5920764,0.00018185,2]
[379133344,1755153038803,-1028.07,0.00018185,2]
[379133345,1755153038812,-660.81,0.00018185,2]
[379133346,1755153038822,-460.0,0.00018185,2]
[379133347,1755153038832,-917.4,0.00018185,2]
[379133348,1755153038841,-2379.7,0.00018185,2]
[379133349,1755153038851,-79.75110574,0.00018185,2]
[379133350,1755153038863,-380.24889426,0.00018185,2]
[379133351,1755153038877,-83.4370809,0.00018185,2]
[379133352,1755153038889,-376.5629191,0.00018185,2]
[379133353,1755153039093,-225.17333796,0.00018185,2]
[379133354,1755153039107,-234.82666204,0.00018185,2]
[379133355,1755153039119,-169.56510614,0.00018185,2]
[379133384,1755153040580,-387.27489386,0.00018185,2]
[379133385,1755153040589,-460.0,0.00018185,2]
[379133386,1755153040599,-460.0,0.00018185,2]
[379133388,1755153040608,-460.0,0.00018185,2]
[379133389,1755153040618,-460.0,0.00018185,2]
[379133390,1755153040627,-460.0,0.00018185,2]
[379133391,1755153040636,-460.0,0.00018185,2]
[379133392,1755153040646,-460.0,0.00018185,2]
[379133393,1755153040655,-462.07913827,0.00018185,2]
[379133394,1755153040665,-460.0,0.00018185,2]
[379133395,1755153040674,-460.0,0.00018185,2]
[379133396,1755153040683,-246.11498051,0.00018185,2]
[379133397,1755153040692,-460.0,0.00018185,2]
[379133398,1755153040702,-283.48317685,0.00018185,2]
[379133399,1755153040711,-519.80261382,0.00018185,2]
[379133400,1755153040720,-460.0,0.00018185,2]
[379133401,1755153040730,-460.0,0.00018185,2]
[379133402,1755153040739,-460.0,0.00018186,2]
[379133403,1755153040748,-460.0,0.00018186,2]
[379133404,1755153040758,-460.0,0.00018186,2]
[379133405,1755153040767,-460.0,0.00018186,2]
[379133406,1755153040777,-262.89527155,0.00018186,2]
[379133409,1755153045635,-460.0,0.00018185,2]
[379133410,1755153045645,-460.0,0.00018185,2]
[379133411,1755153045655,-545.84,0.00018185,2]
[379133412,1755153045664,-460.0,0.00018185,2]
[379133413,1755153045673,-460.0,0.00018185,2]
[379133414,1755153045683,-197.10472845,0.00018186,2]
[379133415,1755153045692,-460.0,0.00018186,2]
[379133416,1755153045701,-460.0,0.00018186,2]
[379133417,1755153045710,-460.0,0.00018186,2]
[379133418,1755153045720,-460.0,0.00018186,2]
[379133419,1755153045729,-517.1274726,0.00018186,2]
[379133420,1755153045738,-460.0,0.00018186,2]
[379133421,1755153045747,-460.0,0.00018186,2]
[379133422,1755153045757,-460.0,0.00018186,2]
[379133423,1755153045767,-460.0,0.00018186,2]
[379133424,1755153045776,-500.0,0.00018186,2]
[379133425,1755153045785,-403.03140936,0.00018186,2]
[379133426,1755153045814,-96.96859064,0.00018186,2]
[379133427,1755153045824,-732.75,0.00018186,2]
[379133428,1755153045834,-460.0,0.00018186,2]
[379133429,1755153045843,-4663.32,0.00018186,2]
[379133430,1755153045853,-460.0,0.00018186,2]
[379133431,1755153045862,-460.0,0.00018186,2]
[379133432,1755153045871,-478.7,0.00018186,2]
[379133433,1755153045880,-460.0,0.00018186,2]
[379133434,1755153045890,-552.01,0.00018186,2]
[379133435,1755153045903,-2813.83,0.00018186,2]
[379133436,1755153045921,-367.13945175,0.00018186,2]
[379133437,1755153045940,-1003.65,0.00018186,2]
[379133438,1755153045949,-453.63195661,0.00018186,2]
[379133439,1755153045961,-560.42804339,0.00018186,2]
[379133441,1755153045970,-460.0,0.00018186,2]
[379133442,1755153045979,-460.0,0.00018186,2]
[379133443,1755153045988,-3959.77,0.00018186,2]
[379133444,1755153045997,-460.0,0.00018186,2]
[379133445,1755153046006,-1886.26,0.00018186,2]
[379133446,1755153046016,-3105.8,0.00018186,2]
[379133447,1755153046025,-460.0,0.00018186,2]
[379133448,1755153046034,-460.0,0.00018186,2]
[379133449,1755153046043,-722.63,0.00018186,2]
[379133450,1755153046052,-166.73276325,0.00018186,2]
[379133451,1755153046062,-500.0,0.00018186,2]
[379133452,1755153046072,-500.0,0.00018186,2]
[379133453,1755153046082,-366.72116026,0.00018186,2]
[379133454,1755153046092,-500.0,0.00018186,2]
[379133455,1755153046101,-500.0,0.00018186,2]
[379133456,1755153046110,-434.74447237,0.00018186,2]
[379133457,1755153046119,-264.86655362,0.00018186,2]
[379133458,1755153046129,-555.72,0.00018186,2]
[379133460,1755153046139,-522.55,0.00018187,2]
[379133462,1755153046148,-684.66,0.00018187,2]
[379133463,1755153046157,-460.0,0.00018187,2]
[379133465,1755153046166,-482.3,0.00018187,2]
[379133467,1755153046176,-460.0,0.00018187,2]
[379133468,1755153046185,-460.0,0.00018187,2]
[379133469,1755153046194,-460.0,0.00018187,2]
[379133470,1755153046203,-460.0,0.00018187,2]
[379133471,1755153046213,-460.0,0.00018187,2]
[379133472,1755153046222,-460.0,0.00018187,2]
[379133473,1755153046231,-460.0,0.00018187,2]
[379133474,1755153046241,-460.0,0.00018187,2]
[379133475,1755153046250,-781.79,0.00018187,2]
[379133476,1755153046260,-460.0,0.00018187,2]
[379133477,1755153046269,-460.0,0.00018187,2]
[379133478,1755153046279,-818.58,0.00018187,2]
[379133480,1755153046288,-2401.44547259,0.00018187,2]
[379133482,1755153046300,-7.57452741,0.00018187,2]
[379133484,1755153046310,-460.0,0.00018187,2]
[379133485,1755153046320,-460.0,0.00018187,2]
[379133486,1755153046330,-460.0,0.00018187,2]
[379133487,1755153046343,-460.0,0.00018187,2]
[379133489,1755153046352,-460.0,0.00018187,2]
[379133490,1755153046362,-460.0,0.00018187,2]
[379133491,1755153046371,-1092.3,0.00018187,2]
[379133493,1755153046380,-808.8,0.00018187,2]
[379133495,1755153046390,-1384.52,0.00018187,2]
[379133497,1755153046399,-515.24,0.00018187,2]
[379133499,1755153046408,-460.0,0.00018187,2]
[379133500,1755153046418,-460.0,0.00018187,2]
[379133501,1755153046428,-803.28,0.00018187,2]
[379133502,1755153046438,-460.0,0.00018187,2]
[379133503,1755153046447,-2909.68,0.00018187,2]
[379133504,1755153046456,-460.0,0.00018187,2]
[379133505,1755153046466,-500.0,0.00018187,2]
[379133506,1755153046475,-575.886,0.00018187,2]
[379133507,1755153046485,-460.0,0.00018187,2]
[379133508,1755153046494,-460.0,0.00018187,2]
[379133509,1755153046503,-1438.31,0.00018187,2]
[379133511,1755153046512,-460.0,0.00018187,2]
[379133512,1755153046522,-734.66,0.00018187,2]
[379133513,1755153046531,-460.0,0.00018187,2]
[379133514,1755153046540,-1090.65,0.00018187,2]
[379133515,1755153046549,-1014.9,0.00018187,2]
[379133516,1755153046559,-500.0,0.00018187,2]
[379133517,1755153046568,-500.0,0.00018187,2]
[379133519,1755153046579,-460.0,0.00018187,2]
[379133520,1755153046588,-748.11,0.00018187,2]
[379133521,1755153046598,-460.0,0.00018187,2]
[379133522,1755153046607,-449.79387197,0.00018187,2]
[379133576,1755153211513,174.59045466,0.00018088,2]
[379133577,1755153222636,3003.96184974,0.00018091,2]
[379133680,1755153321162,205.49223635,0.0001808,2]
[379133681,1755153338150,336.72175994,0.00018085,2]
[379133692,1755153424014,405.9271296,0.00018086,2]
[379133693,1755153430715,183.0,0.00017984,2]
[379133696,1755153436425,183.0,0.00017721,2]
[379133697,1755153445890,183.0,0.00017842,2]
[379133702,1755153543868,152.76664782,0.00018086,2]
[379133726,1755153809338,10000.0,0.00028585,60]
[379133727,1755153813445,294.63153993,0.00018083,2]
[379133732,1755153880582,152.76664782,0.00018085,2]
[379133733,1755153907085,7000.0,0.00028585,60]
[379133734,1755153954759,307.748499,0.00013699,2]
[379133753,1755154042733,416.7065114,0.0003,120]
[379134026,1755154079541,257.8025975,0.00018078,2]
[379134079,1755154166128,-183.0,0.00018153,2]
[379134080,1755154166156,-300.0,0.00018173,2]
[379134081,1755154166185,-1755.15016163,0.00018174,2]
[379134082,1755154166518,-4476.30032326,0.00018174,2]
[379134083,1755154166566,-1047.39935348,0.00018174,2]
[379134276,1755154202360,300.0,0.00018173,2]
[379134277,1755154202388,300.0,0.00018173,2]
[379134278,1755154202483,300.0,0.00018173,2]
[379134280,1755154203511,300.0,0.00018173,2]
[379134291,1755154214023,152.76664782,0.00018084,2]
[379134308,1755154231995,-500.0,0.00018174,2]
[379134309,1755154232005,-400.1571553,0.00018174,2]
[379134310,1755154232047,-99.8428447,0.00018174,2]
[379134311,1755154232057,-151.0,0.00018174,2]
[379134312,1755154232066,-151.0,0.00018174,2]
[379134313,1755154232076,-151.0,0.00018174,2]
[379134314,1755154232085,-151.0,0.00018174,2]
[379134315,1755154232095,-300.0,0.00018174,2]
[379134317,1755154232105,-203.82073721,0.00018174,2]
[379134319,1755154232115,-151.0,0.00018174,2]
[379134321,1755154232125,-151.0,0.00018174,2]
[379134322,1755154232134,-151.0,0.00018174,2]
[379134323,1755154232144,-532.22079616,0.00018174,2]
[379134324,1755154232153,-300.0,0.00018174,2]
[379134325,1755154232162,-151.0,0.00018174,2]
[379134326,1755154232173,-151.0,0.00018174,2]
[379134327,1755154232184,-151.0,0.00018174,2]
[379134328,1755154232193,-300.0,0.00018174,2]
[379134329,1755154232203,-151.0,0.00018174,2]
[379134330,1755154232212,-241.26450276,0.00018174,2]
[379134331,1755154232222,-151.0,0.00018174,2]
[379134332,1755154232232,-300.0,0.00018174,2]
[379134333,1755154232241,-151.0,0.00018174,2]
[379134334,1755154232250,-300.0,0.00018174,2]